bitfinex-derivatives/quotes_SOLF0:USTF0_20241016
["timestamp","ask_amount","ask_price","bid_price","bid_amount"]
[1729094201876,3.2102,155.78,155.75,3.2107]
[1729094202562,3.2102,155.78,155.75,6.34591884]
[1729094203065,19.27,155.83,155.73,24.47]
[1729094203370,19.27,155.83,155.74,19.27]
[1729094203570,19.27,155.83,155.74,22.53261065]
[1729094203974,20.5944,155.85,155.74,22.53261065]
[1729094204358,19.27,155.83,155.74,3.26261065]
[1729094204578,19.27,155.83,155.73,5.2]
[1729094204867,3.2097,155.8,155.77,3.2101]
[1729094205066,19.27,155.83,155.76,5.2]
[1729094205862,3.2093,155.82,155.78,3.2101]
[1729094207263,3.2095,155.81,155.78,3.2101]
[1729094207766,3.2095,155.81,155.79,3.2099]
[1729094208566,19.27,155.83,155.76,8.43692333]
[1729094209087,3.2099,155.79,155.77,3.2102]
[1729094209660,3.2099,155.79,155.76,11.64732333]
[1729094209862,3.2102,155.78,155.76,8.43692333]
[1729094211561,3.2103,155.77,155.76,3.23692333]
[1729094211770,19.27,155.79,155.72,5.2]
[1729094212071,19.27,155.77,155.71,6.5983]
[1729094213367,3.211,155.74,155.71,9.8097]
[1729094216278,19.27,155.77,155.71,6.5983]
[1729094216467,19.27,155.79,155.72,3.2112]
[1729094216977,3.2109,155.75,155.72,3.2112]
[1729094217372,19.27,155.79,155.72,3.2112]
[1729094217569,3.211,155.74,155.72,3.2112]
[1729094219176,3.211,155.74,155.71,9.8097]
[1729094219878,3.2113,155.72,155.71,5.2]
[1729094223579,3.2117,155.7,155.69,5.2]
[1729094224074,3.2115,155.72,155.69,8.4119]
[1729094224275,22.0429,155.78,155.69,20.62]
[1729094224689,3.211,155.74,155.71,3.2114]
[1729094225073,22.0429,155.78,155.71,3.2114]
[1729094225269,22.0429,155.78,155.69,20.62]
[1729094225481,15.42,155.76,155.66,16.7981]
[1729094225678,3.2123,155.68,155.66,1.3781]
[1729094225879,3.2123,155.68,155.65,3.18274669]
[1729094225880,15.42,155.7,155.65,3.18274669]
[1729094226081,15.42,155.7,155.62,5.2]
[1729094226285,3.2127,155.66,155.62,8.42779689]
[1729094226508,3.2127,155.66,155.63,3.2131]
[1729094226878,3.2128,155.65,155.63,3.2131]
[1729094227482,15.42,155.68,155.63,3.2131]
[1729094227883,3.2128,155.65,155.63,3.2131]
[1729094229286,3.2128,155.65,155.62,11.64109689]
[1729094229878,3.2128,155.65,155.62,3.22779689]
[1729094230080,15.42,155.66,155.61,1.3435]
[1729094230289,15.42,155.66,155.62,3.17912451]
[1729094230482,3.2134,155.62,155.59,8.4138]
[1729094230990,3.2134,155.62,155.59,5.2]
[1729094232384,3.2134,155.62,155.6,3.2138]
[1729094232779,3.2133,155.63,155.6,3.2138]
[1729094233584,15.42,155.66,155.59,5.2]
[1729094233787,3.213,155.64,155.61,3.2135]
[1729094233989,3.213,155.64,155.61,6.48643184]
[1729094235394,3.2134,155.62,155.61,3.27293184]
[1729094235686,20.62,155.66,155.57,5.2]
[1729094235884,3.2137,155.61,155.58,3.2142]
[1729094236084,1.4382,155.65,155.57,5.2]
[1729094236692,3.2132,155.63,155.6,3.2138]
[1729094239097,3.2129,155.65,155.58,15.42]
[1729094239291,5.2,155.66,155.58,15.42]
[1729094239292,15.42,155.68,155.58,15.42]
[1729094239592,3.213,155.64,155.61,3.2134]
[1729094239792,15.42,155.68,155.62,3.18529182]
[1729094239996,229.0,155.8,155.64,15.42]
[1729094240197,15.42,155.77,155.67,15.42]
[1729094240410,15.42,155.77,155.67,18.67856864]
[1729094241200,3.2115,155.72,155.67,18.67856864]
[1729094241697,3.2119,155.69,155.67,3.25856864]
[1729094241896,3.2119,155.69,155.65,22.0082]
[1729094242287,3.2119,155.69,155.65,16.8082]
[1729094242487,3.2119,155.69,155.66,3.2124]
[1729094242683,3.2119,155.69,155.66,6.46876363]
[1729094247599,3.2119,155.69,155.66,3.25636363]
[1729094247902,3.2119,155.69,155.67,3.2123]
[1729094248106,3.2119,155.69,155.67,6.44253241]
[1729094249108,20.62,155.74,155.67,3.23023241]
[1729094249304,15.42,155.7,155.63,1.3241]
[1729094249501,15.42,155.7,155.62,5.2]
[1729094250202,3.2125,155.67,155.62,5.2]
[1729094251094,3.2127,155.66,155.62,5.2]
[1729094251397,15.42,155.67,155.62,3.2132]
[1729094251795,3.2131,155.64,155.62,3.2132]
[1729094252203,15.42,155.65,155.61,5.2]
[1729094252402,3.2133,155.63,155.59,2.7611]
[1729094253108,3.2135,155.62,155.59,4.5548]
[1729094253295,15.42,155.63,155.59,4.5548]
[1729094253901,15.42,155.65,155.61,3.2136]
[1729094254711,3.2132,155.63,155.6,3.2137]
[1729094256206,1.3516,155.69,155.59,15.42]
[1729094256207,3.2125,155.67,155.59,15.42]
[1729094256403,15.42,155.69,155.6,1.4045]
[1729094256609,3.2126,155.66,155.63,3.213]
[1729094257201,3.2126,155.66,155.6,1.4045]
[1729094257202,3.2126,155.66,155.64,3.213]
[1729094258910,3.2124,155.67,155.64,3.213]
[1729094259609,15.42,155.69,155.64,3.213]
[1729094259799,3.2126,155.66,155.64,3.213]
[1729094260206,3.2126,155.66,155.63,3.2131]
[1729094260400,15.42,155.66,155.6,1.4045]
[1729094261217,3.2132,155.63,155.6,1.4045]
[1729094261703,3.2132,155.63,155.6,4.6182]
[1729094262605,3.2134,155.63,155.6,4.6182]
[1729094262805,15.42,155.66,155.6,4.6182]
[1729094264032,3.2135,155.62,155.59,3.2139]
[1729094264504,3.2133,155.63,155.61,3.2136]
[1729094264704,3.2133,155.63,155.57,5.2]
[1729094264911,15.42,155.64,155.57,8.45140151]
[1729094265105,3.2134,155.62,155.59,3.2138]
[1729094266205,3.2132,155.63,155.57,8.45140151]
[1729094267006,3.2132,155.63,155.58,3.214]
[1729094267206,3.2132,155.63,155.57,8.45140151]
[1729094267709,15.42,155.66,155.58,15.42]
[1729094268101,15.42,155.69,155.58,15.42]
[1729094268417,15.42,155.69,155.6,15.42]
[1729094268715,5.2,155.7,155.6,15.42]
[1729094268716,5.2,155.7,155.61,6.5169]
[1729094268914,3.2126,155.67,155.64,3.2129]
[1729094270018,3.2126,155.66,155.64,3.2129]
[1729094270212,5.2,155.7,155.61,6.5169]
[1729094270419,15.42,155.68,155.62,3.2133]
[1729094270713,3.2127,155.66,155.61,6.5169]
[1729094271117,3.2127,155.66,155.63,3.2131]
[1729094271322,15.42,155.68,155.61,6.5169]
[1729094271523,3.2125,155.67,155.61,6.5169]
[1729094271724,15.42,155.68,155.63,3.2131]
[1729094272318,3.2127,155.66,155.63,3.2131]
[1729094273716,15.42,155.68,155.61,6.5169]
[1729094273915,15.42,155.72,155.62,15.42]
[1729094274122,15.42,155.72,155.62,18.2499]
[1729094274430,3.2115,155.71,155.69,3.2118]
[1729094274721,3.2115,155.71,155.69,6.48121499]
[1729094274917,3.2115,155.71,155.69,3.2118]
[1729094275516,3.2115,155.71,155.69,6.46964753]
[1729094275911,15.42,155.72,155.69,3.25784753]
[1729094276114,15.42,155.7,155.65,5.2]
[1729094276313,15.42,155.7,155.65,8.42925019]
[1729094276520,3.212,155.69,155.66,3.2125]
[1729094276722,15.42,155.7,155.65,8.42925019]
[1729094276922,15.42,155.68,155.65,3.22925019]
[1729094277222,15.42,155.68,155.63,5.2]
[1729094277424,15.43,155.67,155.63,5.2]
[1729094277626,3.213,155.64,155.61,4.5303]
[1729094277816,15.43,155.67,155.61,6.5169]
[1729094278316,15.43,155.62,155.59,5.2]
[1729094278712,3.2137,155.61,155.59,5.2]
[1729094279624,3.2137,155.61,155.59,8.414]
[1729094280329,15.43,155.62,155.6,3.2138]
[1729094280936,3.2133,155.63,155.59,5.2]
[1729094281125,3.2133,155.63,155.59,6.5282]
[1729094281522,15.43,155.67,155.61,3.2136]
[1729094281726,15.43,155.67,155.59,6.5282]
[1729094281931,3.2123,155.68,155.59,21.9582]
[1729094282123,3.2123,155.68,155.65,3.2127]
[1729094282318,3.2123,155.68,155.65,6.38545763]
[1729094282934,3.2121,155.69,155.67,3.2123]
[1729094283119,15.43,155.71,155.67,3.2123]
[1729094283316,15.43,155.71,155.65,3.17275763]
[1729094283525,15.43,155.67,155.61,5.2]
[1729094283732,15.43,155.67,155.61,8.43365443]
[1729094284234,3.2129,155.65,155.62,3.2134]
[1729094288226,3.213,155.64,155.62,3.2134]
[1729094290730,2.8043,155.75,155.61,8.43365443]
[1729094291036,15.43,155.71,155.61,23.86365443]
[1729094291332,3.2122,155.68,155.66,3.2124]
[1729094291932,3.212,155.69,155.65,5.2]
[1729094292131,15.43,155.71,155.67,3.2122]
[1729094292930,3.2126,155.66,155.65,5.2]
[1729094294233,18.6421,155.69,155.66,3.2125]
[1729094294434,3.2121,155.69,155.65,5.2]
[1729094294630,15.43,155.71,155.65,5.2]
[1729094295535,3.212,155.69,155.65,5.2]
[1729094296137,3.212,155.69,155.66,3.2124]
[1729094296634,15.43,155.71,155.65,5.2]
[1729094296859,15.43,155.75,155.66,1.3827]
[1729094297136,5.2,155.77,155.69,15.43]
[1729094297439,15.43,155.79,155.69,23.80895352]
[1729094297834,3.2105,155.76,155.73,3.2109]
[1729094298137,3.2105,155.76,155.69,23.80895352]
[1729094298733,3.2105,155.76,155.73,3.211]
[1729094300739,3.2105,155.76,155.73,8.411]
[1729094300930,3.2104,155.77,155.74,3.2108]
[1729094301328,3.2104,155.77,155.73,5.2]
[1729094301533,3.2102,155.78,155.74,1.372]
[1729094301831,31.2947,155.83,155.74,1.372]
[1729094302030,3.2099,155.79,155.76,3.2104]
[1729094302830,24.67,155.81,155.74,1.372]
[1729094303027,24.67,155.75,155.57,93.29142854]
[1729094303231,24.67,155.71,155.62,2.794]
[1729094303437,3.2121,155.69,155.65,3.2126]
[1729094304142,3.2118,155.7,155.63,5.2]
[1729094306543,3.2118,155.7,155.66,3.2124]
[1729094306739,24.67,155.73,155.67,5.2]
[1729094308545,3.2115,155.71,155.68,3.2121]
[1729094309237,3.2118,155.7,155.67,8.4122]
[1729094311144,24.67,155.73,155.67,5.2]
[1729094311543,24.67,155.73,155.65,3.2126]
[1729094311739,24.67,155.73,155.65,8.4126]
[1729094312652,3.2123,155.68,155.65,8.4126]
[1729094314750,24.67,155.73,155.65,5.2]
[1729094314949,3.2124,155.67,155.65,5.2]
[1729094315145,24.67,155.7,155.62,5.97870467]
[1729094315350,3.2122,155.68,155.63,8.4131]
[1729094315551,24.67,155.7,155.63,8.4131]
[1729094315947,3.2127,155.66,155.63,8.4131]
[1729094316547,3.2124,155.67,155.63,5.2]
[1729094317146,3.2124,155.67,155.64,3.2129]
[1729094318150,24.67,155.7,155.64,3.2129]
[1729094318351,3.2126,155.66,155.64,3.2129]
[1729094320451,3.2126,155.66,155.63,8.4131]
[1729094320651,3.2126,155.66,155.63,3.2131]
[1729094320855,3.2126,155.66,155.63,8.4131]
[1729094323061,3.2126,155.66,155.63,3.2131]
[1729094323263,3.2126,155.66,155.63,8.4131]
[1729094323961,3.2126,155.66,155.64,3.2129]
[1729094327467,15.42,155.68,155.62,4.59950467]
[1729094327682,15.42,155.68,155.62,3.18470467]
[1729094327864,15.42,155.68,155.61,8.4135]
[1729094328169,3.2132,155.64,155.61,8.4135]
[1729094328375,3.2132,155.64,155.61,11.62037317]
[1729094328967,3.2132,155.64,155.61,6.42037317]
[1729094329162,3.2134,155.62,155.61,3.20687317]
[1729094329362,15.42,155.64,155.58,1.4409]
[1729094329658,15.42,155.64,155.58,6.6409]
[1729094329864,3.2139,155.6,155.58,5.2]
[1729094332667,15.42,155.64,155.58,5.2]
[1729094333178,15.42,155.64,155.58,8.4142]
[1729094333472,3.2138,155.61,155.58,8.4142]
[1729094334470,15.42,155.66,155.58,5.2]
[1729094334768,1.3334,155.69,155.58,5.2]
[1729094334769,15.42,155.68,155.58,20.62]
[1729094335167,3.2131,155.64,155.61,3.2136]
[1729094335363,15.42,155.62,155.54,6.6409]
[1729094335568,15.42,155.62,155.54,1.4409]
[1729094335771,15.42,155.62,155.55,5.2]
[1729094336668,3.2141,155.59,155.55,5.2]
[1729094337075,15.42,155.62,155.55,5.2]
[1729094337268,15.42,155.62,155.56,3.2145]
[1729094338574,3.2142,155.59,155.56,3.2145]
[1729094339971,3.2136,155.62,155.59,3.2139]
[1729094340171,20.62,155.64,155.55,5.2]
[1729094340570,3.214,155.6,155.57,3.2143]
[1729094341374,15.42,155.62,155.55,5.2]
[1729094341977,3.2141,155.59,155.56,3.2144]
[1729094344272,3.2141,155.59,155.57,3.2144]
[1729094344978,3.2139,155.6,155.57,3.2144]
[1729094346578,15.42,155.64,155.57,3.2144]
[1729094346579,3.214,155.59,155.57,3.2144]
[1729094346975,15.42,155.64,155.55,5.2]
[1729094347177,1.4188,155.65,155.61,3.2135]
[1729094347383,20.62,155.68,155.61,3.27645564]
[1729094347680,6.4236,155.7,155.6,15.42]
[1729094347681,3.2126,155.67,155.6,15.42]
[1729094347884,15.42,155.7,155.62,15.42]
[1729094348184,3.2122,155.68,155.65,3.2127]
[1729094348779,3.212,155.69,155.66,3.2124]
[1729094348981,116.96291037,155.73,155.66,3.2124]
[1729094349576,15.42,155.7,155.63,5.2]
[1729094349788,15.42,155.68,155.62,3.15566827]
[1729094349973,3.2131,155.64,155.61,5.2]
[1729094350177,3.2131,155.64,155.61,8.4136]
[1729094350485,15.42,155.66,155.61,3.15116981]
[1729094350689,15.42,155.64,155.59,5.2]
[1729094350983,15.42,155.64,155.59,8.4138]
[1729094350984,3.2134,155.62,155.59,8.4138]
[1729094353889,3.2134,155.62,155.59,5.2]
[1729094354196,3.2133,155.63,155.6,3.2138]
[1729094354686,3.2131,155.64,155.59,5.2]
[1729094355193,3.2132,155.63,155.61,3.2135]
[1729094355387,3.2132,155.63,155.61,6.47582735]
[1729094355594,15.42,155.67,155.59,5.2]
[1729094355782,15.42,155.67,155.61,3.2135]
[1729094355783,3.2131,155.64,155.61,3.2135]
[1729094356092,15.42,155.67,155.61,6.45558241]
[1729094356288,15.42,155.67,155.61,3.2135]
[1729094356493,15.42,155.67,155.61,6.50539139]
[1729094356690,15.42,155.67,155.61,3.2135]
[1729094357293,15.42,155.67,155.61,6.41605658]
[1729094357493,3.2132,155.63,155.61,6.41605658]
[1729094360793,3.2132,155.63,155.61,3.20255658]
[1729094361094,3.2132,155.63,155.6,3.2137]
[1729094362700,3.2129,155.65,155.62,3.2133]
[1729094362901,3.2129,155.65,155.62,3.20094984]
[1729094363093,3.2129,155.65,155.59,5.2]
[1729094363586,3.2129,155.65,155.62,3.2132]
[1729094363790,13.0829,155.65,155.62,6.38008692]
[1729094364610,9.87,155.65,155.62,3.16688692]
[1729094364898,3.2131,155.64,155.61,3.2135]
[1729094365100,3.2131,155.64,155.61,6.45998538]
[1729094368806,3.2131,155.64,155.62,3.2134]
[1729094369006,13.083,155.65,155.62,3.2134]
[1729094369406,9.87,155.65,155.62,3.2134]
[1729094369604,13.0828,155.65,155.61,3.24648538]
[1729094369903,1.3516,155.71,155.59,15.07]
[1729094369904,9.87,155.67,155.64,3.2128]
[1729094370110,9.87,155.67,155.64,6.37478165]
[1729094370308,13.0825,155.67,155.64,6.37478165]
[1729094370507,9.87,155.67,155.65,3.2126]
[1729094371405,13.0824,155.67,155.65,3.2126]
[1729094373111,3.2118,155.7,155.67,3.2124]
[1729094373305,9.87,155.72,155.65,9.87]
[1729094373514,9.87,155.72,155.65,11.1908]
[1729094373704,3.2119,155.7,155.67,3.2122]
[1729094374515,3.212,155.69,155.67,3.2122]
[1729094381723,9.87,155.68,155.64,3.16198165]
[1729094381915,3.2125,155.67,155.64,8.3929]
[1729094382814,13.0823,155.68,155.65,3.2126]
[1729094383210,3.2123,155.68,155.65,3.2126]
[1729094383427,13.0823,155.68,155.65,3.2126]
[1729094386716,13.0819,155.7,155.67,3.2122]
[1729094387027,3.2119,155.7,155.67,3.2122]
[1729094387229,9.87,155.71,155.67,3.2122]
[1729094387416,3.2119,155.7,155.67,3.2122]
[1729094387828,9.87,155.71,155.67,3.2122]
[1729094389528,3.212,155.69,155.67,3.2122]
[1729094389829,9.87,155.71,155.68,3.212]
[1729094390122,9.87,155.71,155.66,9.87]
[1729094390324,9.87,155.73,155.67,9.87]
[1729094390715,3.2115,155.72,155.67,9.87]
[1729094390920,9.87,155.73,155.68,5.18]
[1729094391528,9.87,155.73,155.7,3.2116]
[1729094392546,3.2114,155.72,155.7,3.2116]
[1729094394428,3.2114,155.72,155.69,3.2118]
[1729094403137,3.2114,155.72,155.69,3.2119]
[1729094403338,3.2114,155.72,155.69,4.5205]
[1729094404035,1.3857,155.78,155.69,1.3086]
[1729094404335,1.3857,155.78,155.73,9.87]
[1729094404541,1.3857,155.78,155.69,5.18]
[1729094404542,6.4209,155.77,155.69,5.18]
[1729094404747,1.3857,155.78,155.69,5.18]
[1729094405043,5.18,155.76,155.67,9.87]
[1729094405434,3.2111,155.74,155.67,9.87]
[1729094405630,11.6011,155.76,155.67,9.87]
[1729094405837,5.18,155.76,155.64,1.409]
[1729094406027,3.2128,155.65,155.64,1.409]
[1729094406230,5.18,155.72,155.64,11.279]
[1729094406430,5.18,155.72,155.69,9.87]
[1729094406734,5.18,155.77,155.71,9.87]
[1729094406933,5.18,155.77,155.71,13.14809484]
[1729094407238,3.2113,155.72,155.71,13.14809484]
[1729094407737,3.2113,155.72,155.71,3.27809484]
[1729094408036,3.2113,155.72,155.68,9.87]
[1729094408239,3.2119,155.69,155.67,5.18]
[1729094409437,3.2119,155.69,155.67,8.3923]
[1729094409739,3.2118,155.7,155.67,18.2623]
[1729094411334,3.2115,155.72,155.69,13.0819]
[1729094412734,3.2115,155.72,155.69,9.87]
[1729094412940,3.2112,155.73,155.7,9.87]
[1729094413244,1.3857,155.78,155.72,9.87]
[1729094413541,3.16569868,155.86,155.72,9.87]
[1729094413542,6.4176,155.85,155.73,9.87]
[1729094413746,9.87,155.79,155.73,9.87]
[1729094413945,6.5111,155.84,155.73,13.06107052]
[1729094413946,9.87,155.78,155.73,13.06107052]
[1729094415045,1.3311,155.84,155.73,13.06107052]
[1729094415251,7.7855,155.85,155.79,9.87]
[1729094415252,9.87,155.85,155.79,9.87]
[1729094415468,6.4156,155.9,155.81,13.0793]
[1729094415469,9.87,155.86,155.81,13.0793]
[1729094416045,13.0786,155.86,155.81,3.2093]
[1729094416250,9.87,155.86,155.81,3.2093]
[1729094416947,9.87,155.83,155.8,3.2096]
[1729094417151,6.5587,155.9,155.79,8.33253102]
[1729094417152,9.87,155.82,155.79,8.33253102]
[1729094417347,9.87,155.82,155.79,3.15253102]
[1729094417546,9.87,155.82,155.78,5.18]
[1729094417746,9.87,155.81,155.78,6.41967845]
[1729094417951,15.41,155.83,155.78,3.20967845]
[1729094418147,15.41,155.83,155.73,16.8571]
[1729094418148,15.41,155.83,155.77,5.18]
[1729094418452,15.41,155.83,155.78,3.28029138]
[1729094418652,3.2098,155.8,155.76,8.3904]
[1729094418866,15.41,155.8,155.77,3.24645673]
[1729094419061,3.2101,155.78,155.75,5.18]
[1729094419873,3.2107,155.76,155.72,4.6009]
[1729094420059,15.41,155.74,155.66,2.8002]
[1729094420262,15.41,155.74,155.68,5.18]
[1729094420864,3.2113,155.73,155.68,5.18]
[1729094421068,15.41,155.74,155.68,8.3921]
[1729094421372,15.41,155.72,155.67,5.18]
[1729094421667,15.41,155.72,155.66,1.364]
[1729094422572,3.212,155.69,155.66,1.364]
[1729094423170,3.212,155.69,155.66,4.5765]
[1729094424173,3.2116,155.71,155.67,3.2123]
[1729094424664,15.41,155.72,155.66,1.364]
[1729094425871,3.2119,155.7,155.66,4.5764]
[1729094426067,15.41,155.72,155.66,1.364]
[1729094426371,3.2119,155.7,155.66,4.5764]
[1729094427065,3.2118,155.7,155.66,1.364]
[1729094428077,3.2118,155.7,155.67,3.2122]
[1729094428470,15.41,155.72,155.66,1.364]
[1729094428666,3.2118,155.7,155.67,3.2123]
[1729094428873,15.41,155.72,155.66,1.364]
[1729094429171,15.41,155.72,155.62,15.41]
[1729094429375,16.769,155.72,155.64,5.18]
[1729094429675,3.2123,155.68,155.65,3.2127]
[1729094430482,3.212,155.69,155.66,3.2124]
[1729094430978,1.4197,155.71,155.64,8.41966103]
[1729094431168,20.59,155.74,155.64,23.82966103]
[1729094431572,229.0,155.95,155.68,15.41]
[1729094431872,1.4197,155.82,155.75,15.41]
[1729094432071,5.18,155.84,155.76,15.41]
[1729094432270,5.18,155.84,155.78,3.2099]
[1729094432470,18.1794,155.86,155.78,3.19063311]
[1729094432671,5.18,155.85,155.76,16.8181]
[1729094433077,3.2094,155.82,155.78,3.21]
[1729094433981,3.2094,155.82,155.79,3.2098]
[1729094434882,3.2094,155.82,155.76,20.01419323]
[1729094435178,3.2094,155.82,155.78,3.21]
[1729094436378,3.209,155.84,155.8,3.2095]
[1729094436583,3.209,155.84,155.77,15.41]
[1729094436882,15.41,155.91,155.79,15.41]
[1729094437180,15.41,155.91,155.81,15.41]
[1729094437373,5.18,155.92,155.82,6.5462]
[1729094437577,15.41,155.91,155.82,6.5462]
[1729094437775,15.41,155.89,155.82,6.5462]
[1729094438182,3.2086,155.86,155.82,9.7553]
[1729094440283,3.2084,155.87,155.83,3.209]
[1729094440482,69.34,156.03,155.83,15.41]
[1729094440678,15.41,155.95,155.85,15.41]
[1729094440887,15.41,155.93,155.86,5.18]
[1729094441178,15.41,155.91,155.87,3.25912191]
[1729094441372,15.41,155.91,155.84,1.4184]
[1729094441571,20.59,155.91,155.85,3.23388373]
[1729094441776,15.41,155.89,155.81,5.18]
[1729094441979,3.2086,155.86,155.82,3.2092]
[1729094442581,3.2084,155.87,155.83,3.2089]
[1729094443384,3.2081,155.88,155.84,3.2087]
[1729094443582,5.18,155.92,155.84,7.84422367]
[1729094444684,15.41,155.91,155.84,4.63552367]
[1729094447588,3.2084,155.87,155.84,4.63552367]
[1729094447779,15.41,155.91,155.85,3.2085]
[1729094448083,3.2078,155.9,155.85,5.18]
[1729094448280,20.59,155.93,155.86,3.2083]
[1729094448483,20.59,155.93,155.85,5.18]
[1729094448685,3.2079,155.89,155.85,5.18]
[1729094449283,3.2079,155.89,155.86,3.2084]
[1729094450386,20.59,155.93,155.85,5.18]
[1729094451293,3.2075,155.91,155.86,3.2083]
[1729094451486,20.59,155.93,155.86,3.2083]
[1729094451793,3.2079,155.89,155.86,3.2083]
[1729094453793,5.18,155.96,155.87,3.2081]
[1729094453982,20.59,155.96,155.87,3.2081]
[1729094454384,20.59,155.96,155.85,5.18]
[1729094454385,15.41,155.93,155.85,5.18]
[1729094455487,6.4133,155.95,155.85,5.18]
[1729094456297,3.2079,155.89,155.86,3.2083]
[1729094456589,15.41,155.94,155.85,20.59]
[1729094457894,3.2077,155.9,155.87,3.2081]
[1729094458204,20.59,155.96,155.85,20.59]
[1729094458495,3.2076,155.9,155.85,20.59]
[1729094459091,3.2076,155.9,155.87,3.2081]
[1729094460595,3.2075,155.91,155.88,3.2079]
[1729094460795,20.59,155.96,155.88,3.2079]
[1729094461494,20.59,155.96,155.89,3.2077]
[1729094461695,20.59,155.96,155.85,16.8188]
[1729094461899,3.2082,155.88,155.86,5.18]
[1729094462194,15.41,155.92,155.86,5.18]
[1729094462393,3.2081,155.88,155.86,5.18]
[1729094462792,15.41,155.92,155.86,8.3884]
[1729094462987,3.2079,155.89,155.86,8.3884]
[1729094463197,15.41,155.94,155.87,3.2081]
[1729094463592,3.2078,155.9,155.87,3.2081]
[1729094463785,15.41,155.94,155.86,5.18]
[1729094463989,3.2074,155.91,155.89,3.2078]
[1729094464393,15.41,155.96,155.89,3.2077]
[1729094464593,15.41,155.96,155.86,5.18]
[1729094464791,3.2072,155.93,155.86,5.18]
[1729094464992,3.2072,155.93,155.9,3.2075]
[1729094465193,15.41,155.96,155.9,3.2075]
[1729094465392,3.2073,155.92,155.9,3.2075]
[1729094466499,15.41,155.96,155.85,16.8188]
[1729094466690,6.5412,155.98,155.87,3.2082]
[1729094466691,3.2077,155.9,155.87,3.2082]
[1729094467291,3.2077,155.9,155.87,3.208]
[1729094467801,3.2073,155.92,155.89,3.2078]
[1729094470001,3.2073,155.92,155.87,3.2081]
[1729094470200,3.2073,155.92,155.86,5.18]
[1729094470201,15.41,155.92,155.84,5.97972367]
[1729094470400,15.41,155.9,155.84,4.63552367]
[1729094470898,3.2086,155.85,155.84,3.19762367]
[1729094471096,15.41,155.88,155.8,1.3215]
[1729094471297,3.209,155.84,155.81,8.3894]
[1729094471893,15.41,155.88,155.81,5.18]
[1729094472990,3.2088,155.85,155.82,3.2092]
[1729094473197,20.59,155.9,155.81,20.59]
[1729094473507,20.59,155.9,155.81,5.18]
[1729094473704,20.59,155.9,155.82,3.2093]
[1729094474000,15.41,155.88,155.81,5.18]
[1729094474207,3.209,155.84,155.81,8.3895]
[1729094475900,3.2092,155.83,155.81,5.18]
[1729094476408,15.41,155.88,155.81,5.18]
[1729094476609,3.2092,155.83,155.81,5.18]
[1729094477807,3.209,155.84,155.81,8.3893]
[1729094478211,15.41,155.88,155.81,8.3893]
[1729094478907,3.2091,155.83,155.81,5.18]
[1729094479109,15.41,155.88,155.81,5.18]
[1729094480006,15.41,155.88,155.8,1.3215]
[1729094480408,3.2095,155.81,155.8,1.3215]